bitfinex-derivatives/quotes_SOLF0:USTF0_20250919
["timestamp","ask_amount","ask_price","bid_price","bid_amount"]
[1758265374546,10.77,243.74,243.62,105.44]
[1758265374748,10.77,243.74,243.63,6.88]
[1758265374942,10.77,243.74,243.63,13.7438363]
[1758265375147,10.77,243.74,243.64,6.88]
[1758265375348,10.77,243.74,243.63,6.8638363]
[1758265375547,10.77,243.74,243.66,6.88]
[1758265375747,0.03136052,243.71,243.67,105.42]
[1758265375946,0.03136052,243.71,243.64,6.88]
[1758265376144,0.03136052,243.71,243.68,6.88]
[1758265376647,0.03136052,243.71,243.7,7.07]
[1758265377243,0.03136052,243.71,243.62,7.07]
[1758265377549,0.03136052,243.71,243.64,7.07]
[1758265378950,0.03136052,243.71,243.62,6.57]
[1758265379148,0.03136052,243.71,243.64,6.57]
[1758265379355,0.03136052,243.71,243.64,111.93]
[1758265379650,0.03136052,243.71,243.65,6.57]
[1758265380044,0.03136052,243.71,243.65,6.59835939]
[1758265380855,6.2,243.7,243.65,0.02835939]
[1758265381157,6.2,243.7,243.66,6.57]
[1758265381656,6.2,243.7,243.68,6.57]
[1758265382056,6.2,243.7,243.67,6.57]
[1758265382354,6.2,243.7,243.69,6.57]
[1758265383353,6.2,243.7,243.69,111.77]
[1758265383554,6.2,243.7,243.69,6.57]
[1758265383755,6.2,243.7,243.69,111.75]
[1758265383952,6.2,243.7,243.65,6.59835939]
[1758265384148,6.2,243.7,243.65,0.02835939]
[1758265384351,6.2,243.7,243.66,6.57]
[1758265384548,6.2,243.7,243.66,105.86]
[1758265384748,6.2,243.7,243.66,112.43]
[1758265384943,6.2,243.7,243.66,6.57]
[1758265385152,6.2,243.7,243.66,102.95]
[1758265385844,6.2,243.7,243.67,6.57]
[1758265386044,6.2,243.7,243.68,6.57]
[1758265386249,6.2,243.7,243.67,105.76]
[1758265386654,6.2,243.7,243.68,6.57]
[1758265387150,6.2,243.7,243.65,0.02835939]
[1758265387344,6.2,243.7,243.66,105.05]
[1758265387749,6.2,243.7,243.66,6.57]
[1758265388149,6.2,243.7,243.66,108.01]
[1758265388357,13.14,243.7,243.66,101.44]
[1758265388551,13.14,243.7,243.65,0.02835939]
[1758265388745,13.14,243.7,243.65,6.59835939]
[1758265389151,6.94,243.69,243.65,0.02835939]
[1758265389355,6.2,243.7,243.65,0.02835939]
[1758265389550,6.94,243.69,243.65,0.02835939]
[1758265389949,6.2,243.7,243.65,0.02835939]
[1758265390353,6.94,243.69,243.65,0.02835939]
[1758265390548,6.94,243.67,243.65,0.02835939]
[1758265390752,3.1717363,243.68,243.65,0.02835939]
[1758265391755,6.94,243.68,243.65,0.02835939]
[1758265391953,5.31053215,243.69,243.65,0.02835939]
[1758265392458,6.94,243.68,243.65,0.02835939]
[1758265392959,5.31053215,243.69,243.65,0.02835939]
[1758265393352,6.94,243.68,243.65,0.02835939]
[1758265393546,5.31053215,243.69,243.65,0.02835939]
[1758265393751,6.94,243.68,243.65,0.02835939]
[1758265393946,5.31053215,243.69,243.65,0.02835939]
[1758265394155,6.94,243.68,243.65,0.02835939]
[1758265394560,6.94,243.67,243.65,0.02835939]
[1758265394762,6.94,243.68,243.65,0.02835939]
[1758265395056,5.31053215,243.69,243.65,0.02835939]
[1758265395258,6.94,243.68,243.65,0.02835939]
[1758265395462,5.31053215,243.69,243.65,0.02835939]
[1758265395660,6.94,243.68,243.65,0.02835939]
[1758265396159,5.31053215,243.69,243.65,0.02835939]
[1758265396363,6.94,243.68,243.65,0.02835939]
[1758265396850,6.2,243.7,243.66,6.57]
[1758265397054,6.2,243.7,243.65,0.02835939]
[1758265397558,6.94,243.69,243.65,0.02835939]
[1758265397948,6.2,243.7,243.65,0.02835939]
[1758265398159,6.2,243.7,243.66,6.57]
[1758265398457,6.2,243.7,243.65,0.02835939]
[1758265398957,6.2,243.7,243.53,6.57]
[1758265398958,6.94,243.68,243.53,6.57]
[1758265399358,12.25053215,243.66,243.53,6.57]
[1758265399553,6.94,243.65,243.48,70.57282453]
[1758265399756,6.94,243.65,243.48,58.35]
[1758265400259,0.02770206,243.59,243.48,58.35]
[1758265401565,0.02770206,243.59,243.48,6.57]
[1758265404263,0.02770206,243.59,243.5,6.57]
[1758265405060,0.02770206,243.59,243.52,6.57]
[1758265406164,0.02770206,243.59,243.54,6.57]
[1758265406558,0.02770206,243.59,243.57,3.693]
[1758265406759,0.02770206,243.59,243.58,6.57]
[1758265407265,0.02770206,243.59,243.58,6.99]
[1758265407465,5.51,243.67,243.6,6.57]
[1758265408264,5.51,243.67,243.6,114.31]
[1758265408566,5.51,243.67,243.6,6.57]
[1758265408757,0.02792816,243.66,243.62,7.0]
[1758265409254,0.02792816,243.66,243.6,8.24899015]
[1758265409459,0.02792816,243.66,243.62,7.0]
[1758265409660,0.02792816,243.66,243.62,107.74]
[1758265409856,0.02792816,243.66,243.62,114.74]
[1758265410061,0.02792816,243.66,243.63,7.0]
[1758265410461,0.02792816,243.66,243.62,107.74]
[1758265410858,0.02792816,243.66,243.59,107.72]
[1758265411064,6.78,243.65,243.55,4.55639015]
[1758265411559,6.78,243.65,243.56,107.68]
[1758265411761,0.02797501,243.62,243.55,4.55639015]
[1758265412062,0.02797501,243.62,243.56,107.66]
[1758265412256,0.02797501,243.62,243.54,4.55639015]
[1758265412461,0.02797501,243.62,243.55,107.62]
[1758265412860,0.02797501,243.62,243.53,11.55639015]
[1758265413064,6.78,243.61,243.53,7.0]
[1758265413456,6.78,243.61,243.53,10.43982512]
[1758265413861,6.78,243.61,243.53,3.43982512]
[1758265414061,6.78,243.61,243.51,3.43982512]
[1758265414257,6.78,243.61,243.52,3.43982512]
[1758265414861,0.02724135,243.59,243.52,3.43982512]
[1758265415463,0.02724135,243.59,243.51,3.43982512]
[1758265415670,0.02724135,243.59,243.53,3.43982512]
[1758265416170,0.02724135,243.59,243.54,3.43982512]
[1758265416662,0.02724135,243.59,243.54,7.0]
[1758265418163,0.02724135,243.59,243.53,3.43982512]
[1758265418370,0.02724135,243.59,243.51,3.43982512]
[1758265418970,6.78,243.58,243.51,3.43982512]
[1758265419171,6.78,243.58,243.5,3.43982512]
[1758265420776,0.02724135,243.59,243.51,10.43982512]
[1758265420975,0.02724135,243.59,243.52,3.43982512]
[1758265421175,0.02724135,243.59,243.53,3.43982512]
[1758265423080,0.02724135,243.59,243.55,7.0]
[1758265423481,0.02724135,243.59,243.54,111.01982512]
[1758265423677,0.02724135,243.59,243.55,7.0]
[1758265423878,6.49,243.58,243.55,7.0]
[1758265424772,6.49,243.58,243.54,110.85982512]
[1758265424976,6.49,243.58,243.55,7.0]
[1758265427478,6.49,243.58,243.52,3.43982512]
[1758265427479,6.78,243.57,243.52,3.43982512]
[1758265427782,6.78,243.57,243.48,7.0]
[1758265427783,6.78,243.57,243.5,3.43982512]
[1758265428378,6.78,243.57,243.49,3.43982512]
[1758265430174,6.78,243.57,243.48,3.43982512]
[1758265430879,0.02837491,243.55,243.48,3.43982512]
[1758265431275,6.78,243.52,243.43,3.43982512]
[1758265431781,6.78,243.57,243.46,3.43982512]
[1758265431972,0.02948899,243.5,243.47,3.43982512]
[1758265432177,0.02948899,243.5,243.48,3.43982512]
[1758265432379,0.02948899,243.5,243.49,10.43982512]
[1758265433181,0.02948899,243.5,243.49,7.0]
[1758265435183,0.02948899,243.5,243.49,11.55639015]
[1758265435384,0.02948899,243.5,243.49,7.0]
[1758265436379,0.02948899,243.5,243.49,11.55639015]
[1758265436584,0.02948899,243.5,243.49,11.97639015]
[1758265436784,0.02948899,243.5,243.49,11.55639015]
[1758265437783,0.02948899,243.5,243.49,7.0]
[1758265438979,6.49,243.58,243.49,7.0]
[1758265439185,6.49,243.58,243.56,10.29380917]
[1758265439379,6.49,243.58,243.57,106.82]
[1758265439586,6.49,243.58,243.57,117.11373611]
[1758265440685,6.49,243.58,243.57,113.67]
[1758265441481,6.49,243.58,243.57,6.85]
[1758265441681,6.49,243.58,243.57,113.55]
[1758265441886,6.49,243.58,243.57,118.56174556]
[1758265442087,6.49,243.58,243.57,113.97]
[1758265442279,6.22,243.65,243.58,6.85]
[1758265442484,6.22,243.65,243.63,3.44381818]
[1758265442684,6.22,243.65,243.64,116.93381818]
[1758265442881,6.22,243.65,243.64,110.08381818]
[1758265443085,6.22,243.65,243.64,113.49]
[1758265443286,6.22,243.65,243.64,7.27]
[1758265443584,6.54,243.64,243.62,0.03155543]
[1758265443783,6.22,243.65,243.62,3.47517955]
[1758265443984,6.22,243.65,243.63,6.85]
[1758265444187,6.22,243.65,243.64,110.34362412]
[1758265444380,6.22,243.65,243.64,110.34279783]
[1758265444585,6.22,243.65,243.64,113.75]
[1758265445185,6.22,243.65,243.64,6.85]
[1758265445384,12.76,243.65,243.64,95.06]
[1758265446082,6.54,243.64,243.63,106.86]
[1758265446284,6.54,243.64,243.62,106.85155543]
[1758265446481,6.54,243.63,243.62,0.03155543]
[1758265447585,6.22,243.65,243.62,0.03155543]
[1758265447792,12.76,243.65,243.62,0.03155543]
[1758265448492,6.54,243.64,243.62,0.03155543]
[1758265450395,6.22,243.65,243.62,0.03155543]
[1758265450595,6.54,243.64,243.62,0.03155543]
[1758265451890,6.54,243.63,243.62,0.03155543]
[1758265453690,3.17763914,243.64,243.62,0.03155543]
[1758265453895,9.71763914,243.64,243.62,0.03155543]
[1758265454295,6.54,243.64,243.62,0.03155543]
[1758265454493,6.22,243.65,243.62,0.03155543]
[1758265454692,6.54,243.64,243.62,0.03155543]
[1758265455591,6.22,243.65,243.62,0.03155543]
[1758265455996,6.54,243.64,243.62,0.03155543]
[1758265456598,6.22,243.65,243.62,0.03155543]
[1758265456987,6.54,243.64,243.62,0.03155543]
[1758265457297,6.54,243.63,243.62,0.03155543]
[1758265459902,6.96,243.63,243.62,0.03155543]
[1758265461002,6.96,243.63,243.55,3.4424687]
[1758265461206,6.22,243.65,243.55,3.4424687]
[1758265461207,6.54,243.58,243.55,3.4424687]
[1758265461504,6.54,243.58,243.5,3.4424687]
[1758265461698,6.54,243.53,243.49,3.4424687]
[1758265461904,6.54,243.59,243.49,3.4424687]
[1758265462099,6.54,243.59,243.5,3.4424687]
[1758265462306,0.03094979,243.56,243.5,3.4424687]
[1758265462503,0.03094979,243.56,243.52,10.2924687]
[1758265462703,0.03094979,243.56,243.52,3.4424687]
[1758265462998,0.03094979,243.56,243.49,4.58995826]
[1758265462999,0.03094979,243.56,243.55,6.85]
[1758265463200,0.03094979,243.56,243.54,3.4424687]
[1758265464610,0.03094979,243.56,243.55,6.85]
[1758265467810,0.03094979,243.56,243.55,11.43995826]
[1758265468412,0.03094979,243.56,243.55,11.85995826]
[1758265468614,0.03094979,243.56,243.54,4.58995826]
[1758265468812,0.03094979,243.56,243.54,3.44640164]
[1758265470506,0.03094979,243.56,243.53,3.44640164]
[1758265471013,6.86,243.55,243.51,3.44640164]
[1758265471905,0.03094979,243.56,243.52,10.04640164]
[1758265472105,0.03094979,243.56,243.51,3.44640164]
[1758265472106,6.86,243.55,243.51,3.44640164]
[1758265472615,0.03094979,243.56,243.5,3.44640164]
[1758265473713,0.03094979,243.56,243.49,3.44640164]
[1758265474306,0.03094979,243.56,243.54,3.44640164]
[1758265475016,0.03094979,243.56,243.55,6.6]
[1758265478821,0.03094979,243.56,243.55,3.44681316]
[1758265480121,0.03094979,243.56,243.55,6.6]
[1758265480620,0.03094979,243.56,243.55,112.42]
[1758265482111,0.03094979,243.56,243.53,4.58995826]
[1758265482318,0.03094979,243.56,243.55,3.44732859]
[1758265483018,0.03094979,243.56,243.53,89.30732859]
[1758265483219,6.89094979,243.56,243.53,89.30732859]
[1758265483616,6.89094979,243.56,243.53,3.44732859]
[1758265483822,0.03094979,243.56,243.52,3.44732859]
[1758265484022,6.86,243.55,243.52,3.44732859]
[1758265484219,0.03094979,243.56,243.52,3.44732859]
[1758265484413,0.03094979,243.56,243.51,3.44732859]
[1758265484817,6.86,243.55,243.51,3.44732859]
[1758265486322,0.03094979,243.56,243.51,3.44732859]
[1758265486523,6.86,243.55,243.51,3.44732859]
[1758265487220,0.03094979,243.56,243.51,3.44732859]
[1758265487419,0.03094979,243.56,243.52,6.6]
[1758265487624,0.03094979,243.56,243.53,6.6]
[1758265488124,0.03094979,243.56,243.55,6.6]
[1758265488524,0.03094979,243.56,243.55,10.04732859]
[1758265489120,0.03094979,243.56,243.55,6.6]
[1758265492929,0.03094979,243.56,243.55,112.06]
[1758265494930,0.03094979,243.56,243.55,6.6]
[1758265495130,0.03094979,243.56,243.55,111.84]
[1758265495830,0.03094979,243.56,243.53,6.8849374]
[1758265496028,0.03094979,243.56,243.49,6.6]
[1758265496029,6.86,243.55,243.52,109.82189404]
[1758265496229,0.03094979,243.56,243.52,109.82189404]
[1758265496428,0.03094979,243.56,243.54,3.45221673]
[1758265496825,0.03094979,243.56,243.55,10.51221673]
[1758265497029,0.03094979,243.56,243.55,7.06]
[1758265497235,0.03094979,243.56,243.53,116.86189404]
[1758265497626,0.03094979,243.56,243.53,11.66189404]
[1758265498124,0.03094979,243.56,243.54,105.2]
[1758265498323,0.03094979,243.56,243.54,7.12]
[1758265498527,6.75094979,243.56,243.55,3.45304867]
[1758265498730,6.72,243.55,243.54,3.45304867]
[1758265499323,0.03094979,243.56,243.54,3.45304867]
[1758265500433,0.03094979,243.56,243.55,112.28]
[1758265500633,0.03094979,243.56,243.55,105.16]
[1758265500830,0.03094979,243.56,243.53,4.60189404]
[1758265501033,0.03094979,243.56,243.54,105.14]
[1758265501334,0.03094979,243.56,243.55,3.45352753]
[1758265503440,0.03094979,243.56,243.55,105.14]
[1758265504241,0.03094979,243.56,243.52,4.60189404]
[1758265504437,0.03094979,243.56,243.53,112.16]
[1758265504643,0.03094979,243.56,243.54,7.12]
[1758265505043,0.03094979,243.56,243.55,104.98]
[1758265505342,0.03094979,243.56,243.55,112.1]
[1758265506042,7.04,243.57,243.55,112.52]
[1758265506347,6.72,243.7,243.57,7.12]
[1758265506541,6.72,243.7,243.62,3.45250879]
[1758265506739,6.72,243.7,243.63,104.98]
[1758265507148,7.1,243.69,243.63,104.98]
[1758265508347,7.1,243.69,243.66,3.45250879]
[1758265508544,13.82,243.69,243.65,3.45250879]
[1758265508743,6.72,243.68,243.64,37.32]
[1758265509544,6.72,243.68,243.63,73.52]
[1758265509841,7.1,243.69,243.64,10.57250879]
[1758265510047,7.1,243.69,243.67,7.12]
[1758265510648,7.1,243.69,243.64,104.64]
[1758265510849,13.82,243.69,243.64,104.64]
[1758265511053,13.82,243.69,243.63,3.45250879]
[1758265511247,13.82,243.69,243.62,43.29250879]
[1758265512346,13.82,243.69,243.62,3.45250879]
[1758265512756,3.17881394,243.67,243.62,3.45250879]
[1758265512946,6.72,243.62,243.58,3.45250879]
[1758265513251,9.89881394,243.63,243.55,10.57250879]
[1758265513747,12.0333754,243.63,243.55,10.57250879]
[1758265515254,12.0333754,243.63,243.54,3.45250879]
[1758265517054,5.3133754,243.67,243.58,3.45250879]
[1758265517255,5.3133754,243.67,243.58,10.57250879]
[1758265518755,6.72,243.66,243.58,3.45250879]
[1758265518952,6.72,243.66,243.57,3.45250879]
[1758265519454,5.3133754,243.63,243.56,3.45250879]
[1758265519650,5.3133754,243.63,243.55,10.57250879]
[1758265519851,6.72,243.61,243.55,3.45250879]
[1758265520051,6.72,243.58,243.54,3.45250879]
[1758265520454,2.14561346,243.59,243.53,3.45250879]
[1758265520653,8.86561346,243.59,243.53,3.45250879]
[1758265521457,2.14561346,243.62,243.53,10.57250879]
[1758265521858,2.14561346,243.62,243.55,3.45250879]
[1758265522059,6.72,243.64,243.56,3.45250879]
[1758265523057,8.86561346,243.64,243.56,3.45250879]
[1758265523962,6.71,243.63,243.56,3.45250879]
[1758265524356,8.86561346,243.61,243.56,3.45250879]
[1758265524660,6.72,243.6,243.56,3.45250879]
[1758265524861,2.14561346,243.61,243.56,3.45250879]
[1758265525061,2.14561346,243.61,243.56,10.57250879]
[1758265526159,2.14561346,243.61,243.55,10.57250879]
[1758265526359,2.14561346,243.61,243.56,10.57250879]
[1758265526860,6.71,243.63,243.56,10.57250879]
[1758265527061,8.85561346,243.63,243.56,10.57250879]
[1758265527960,6.71,243.63,243.57,3.45250879]
[1758265528754,6.71,243.63,243.6,3.45250879]
[1758265529758,6.71,243.63,243.61,7.12]
[1758265529958,6.71,243.63,243.6,3.45250879]
[1758265530162,6.71,243.63,243.61,3.45250879]
[1758265530355,6.71,243.63,243.62,11.72334506]
[1758265530561,6.71,243.63,243.62,7.12]
[1758265531263,6.71,243.63,243.61,3.44917922]
[1758265533563,6.71,243.63,243.55,6.8849374]
[1758265533564,6.71,243.63,243.6,3.44917922]
[1758265533762,6.71,243.63,243.59,3.44917922]
[1758265534260,6.71,243.63,243.61,7.12]
[1758265534564,6.71,243.63,243.62,3.44917922]
[1758265534756,6.71,243.63,243.62,10.56917922]
[1758265534957,6.71,243.63,243.62,7.12]
[1758265535566,6.71,243.63,243.62,11.72334506]
[1758265535766,6.71,243.63,243.62,7.12]
[1758265537264,6.71,243.63,243.62,14.28895852]
[1758265537462,6.71,243.63,243.62,9.68561346]
[1758265537767,6.71,243.63,243.62,7.54]
[1758265538263,7.05,243.68,243.63,7.12]
[1758265538468,7.05,243.68,243.67,10.56720504]
[1758265538672,7.05,243.68,243.67,7.12]
[1758265540061,7.05,243.68,243.67,11.71627338]
[1758265540966,7.05,243.68,243.67,7.12]
[1758265541871,7.05,243.68,243.67,12.13627338]
[1758265542169,7.05,243.68,243.67,7.54]
[1758265542371,7.05,243.68,243.67,24.53413244]
[1758265542570,7.05,243.68,243.67,12.13627338]
[1758265542970,7.05,243.68,243.67,7.54]
[1758265543172,7.05,243.68,243.67,12.12645802]
[1758265543472,7.05,243.68,243.67,7.54]
[1758265543868,4.9007343,243.68,243.67,7.54]
[1758265544062,4.9007343,243.68,243.67,111.6]
[1758265545072,4.9007343,243.68,243.67,118.47139926]
[1758265545568,4.9007343,243.68,243.67,19.46944377]
[1758265545771,4.9007343,243.68,243.67,128.27985871]
[1758265545964,4.9007343,243.68,243.67,123.69844994]
[1758265546166,4.9007343,243.68,243.67,128.27862588]
[1758265546568,4.9007343,243.68,243.67,128.29862588]
[1758265547368,4.9007343,243.68,243.67,124.13844994]
[1758265548070,11.6,243.79,243.7,3.6911]
[1758265548071,4.55,243.79,243.7,3.6911]
[1758265548266,4.55,243.79,243.77,7.12]
[1758265548466,5.30614406,243.91,243.77,7.12]
[1758265548467,7.05,243.9,243.78,107.37321812]
[1758265548667,310.3,243.95,243.78,107.37321812]
[1758265548870,7.05,243.92,243.79,3.43321812]
[1758265549572,7.05,243.92,243.8,3.43321812]
[1758265550075,7.05,243.92,243.79,3.43321812]
[1758265551170,7.05,243.9,243.78,107.37321812]
[1758265551467,7.05,243.9,243.79,103.84]
[1758265553273,7.05,243.9,243.81,7.12]
[1758265553477,13.24,243.91,243.84,3.43321812]
[1758265553778,13.24,243.91,243.85,110.9]
[1758265554078,13.24,243.91,243.85,110.92857652]
[1758265554280,13.24,243.91,243.85,7.14857652]
[1758265554476,13.24,243.91,243.87,7.12]
[1758265555074,13.24,243.91,243.86,69.32]
[1758265555278,13.24,243.91,243.87,7.12]
[1758265555476,13.24,243.91,243.87,7.16]
[1758265555978,13.24,243.91,243.86,69.32]
[1758265556575,13.24,243.91,243.87,7.16]
[1758265556773,13.24,243.91,243.86,69.32]
[1758265556976,13.24,243.91,243.86,7.16]
[1758265557174,13.24,243.91,243.88,7.16]
[1758265557580,13.24,243.91,243.89,110.84]
[1758265557779,6.88,243.91,243.89,110.84]
[1758265558581,6.88,243.91,243.9,6.76]
[1758265559582,6.88,243.91,243.9,110.34]
[1758265561980,6.88,243.91,243.9,6.76]
[1758265562283,6.88,243.91,243.9,110.24]
[1758265564184,6.88,243.91,243.87,3.6885]
[1758265564185,6.88,243.91,243.85,0.02857652]
[1758265564389,6.88,243.91,243.86,64.3]
[1758265564581,6.81,243.9,243.86,64.3]
[1758265564782,6.88,243.91,243.85,0.02857652]
[1758265564783,12.18614406,243.91,243.85,0.02857652]
[1758265564989,6.81,243.9,243.85,0.02857652]
[1758265565486,6.81,243.9,243.85,6.78857652]
[1758265565894,6.88,243.91,243.85,0.02857652]
[1758265567597,6.81,243.9,243.85,0.02857652]
[1758265568388,0.03039586,243.9,243.85,0.02857652]
[1758265569193,6.81,243.89,243.85,0.02857652]
[1758265569396,6.84039586,243.9,243.85,6.78857652]
[1758265570184,0.03039586,243.9,243.85,0.02857652]
[1758265570391,6.81,243.89,243.85,100.04857652]
[1758265570590,0.03039586,243.9,243.85,0.02857652]
[1758265570784,6.81,243.89,243.85,0.02857652]
[1758265570988,0.03039586,243.9,243.85,0.02857652]
[1758265571193,6.81,243.89,243.85,0.02857652]
[1758265571387,0.03039586,243.9,243.85,0.02857652]
[1758265572096,6.81,243.89,243.85,0.02857652]
[1758265573199,0.03039586,243.9,243.85,0.02857652]
[1758265573395,6.81,243.89,243.85,0.02857652]
[1758265573700,7.23,243.89,243.85,0.02857652]
[1758265574795,5.30614406,243.87,243.72,3.43321812]
[1758265574993,5.30614406,243.87,243.7,10.451]
[1758265574994,6.81,243.86,243.71,3.43321812]
[1758265575190,6.81,243.86,243.72,75.6]
[1758265575397,6.81,243.86,243.74,3.6905]
[1758265576299,0.02846761,243.82,243.74,3.6905]
[1758265577102,0.02846761,243.82,243.74,7.12371812]
[1758265577298,0.02846761,243.82,243.75,3.43321812]
[1758265578302,6.81,243.81,243.75,3.43321812]
[1758265578507,6.81,243.81,243.74,3.43321812]
[1758265579403,6.81,243.81,243.73,10.19321812]
[1758265579704,8.18075993,243.81,243.73,10.19321812]
[1758265579905,8.18075993,243.81,243.73,6.76]
[1758265580105,8.18075993,243.81,243.73,10.19321812]
[1758265581400,1.37075993,243.79,243.73,3.43321812]
[1758265582003,1.37075993,243.76,243.73,3.43321812]
[1758265582295,6.81,243.75,243.72,3.43321812]
[1758265582498,6.81,243.75,243.71,3.43321812]
[1758265585707,1.40228215,243.76,243.7,3.43321812]
[1758265585915,1.37075993,243.71,243.69,3.43321812]
[1758265586212,1.37075993,243.71,243.68,3.43321812]
[1758265586416,8.18075993,243.74,243.68,3.43321812]
[1758265586613,6.81,243.74,243.69,3.43321812]
[1758265586907,0.03129731,243.73,243.68,3.43321812]
[1758265587112,6.84129731,243.73,243.69,3.43321812]
[1758265587505,0.03129731,243.73,243.69,6.76]
[1758265588214,6.93,243.72,243.68,3.43321812]
[1758265589312,6.93,243.72,243.67,3.43321812]
[1758265589516,0.03129731,243.73,243.67,3.43321812]
[1758265589707,4.67129731,243.73,243.67,3.43321812]
[1758265589914,4.67129731,243.73,243.67,4.80397805]
[1758265590617,4.67129731,243.73,243.68,3.43321812]
[1758265590809,4.67129731,243.73,243.69,7.11]
[1758265591410,6.04205724,243.73,243.68,3.43321812]
[1758265591610,8.30075993,243.7,243.65,3.43321812]
[1758265592206,8.30075993,243.7,243.64,10.54321812]
[1758265593215,13.83075993,243.7,243.64,7.11]
[1758265594022,13.83075993,243.7,243.63,3.43321812]
[1758265594515,13.83075993,243.7,243.62,3.43321812]
[1758265595114,0.02847019,243.68,243.62,3.43321812]
[1758265595823,0.02847019,243.68,243.62,3.42540559]
[1758265596212,0.02847019,243.68,243.61,3.42540559]
[1758265596415,0.02847019,243.68,243.64,7.11]
[1758265596618,0.02847019,243.68,243.63,3.42540559]
[1758265596818,0.02847019,243.68,243.65,7.11]
[1758265597121,0.02847019,243.68,243.66,8.48075993]
[1758265597319,0.42,243.67,243.61,3.42540559]
[1758265597517,8.30075993,243.64,243.57,3.42540559]
[1758265597917,6.93,243.6,243.54,3.42540559]
[1758265598113,6.93,243.6,243.53,3.42540559]
[1758265598316,6.93,243.6,243.53,10.53540559]
[1758265598519,0.03088313,243.63,243.51,3.42540559]
[1758265598520,8.30075993,243.55,243.51,3.42540559]
[1758265598725,8.30075993,243.55,243.48,3.42540559]
[1758265599018,8.30075993,243.55,243.47,3.42540559]
[1758265599325,0.02618579,243.54,243.46,10.53540559]
[1758265599930,0.02618579,243.54,243.46,7.11]
[1758265600420,0.02618579,243.54,243.46,12.13760679]
[1758265600628,0.02618579,243.54,243.43,108.28540559]
[1758265601015,6.93,243.53,243.43,3.42540559]
[1758265601219,6.93,243.53,243.43,105.12]
[1758265601819,6.93,243.53,243.41,10.53540559]
[1758265602124,6.93,243.53,243.42,105.1]
[1758265602918,6.93,243.53,243.42,117.44038821]
[1758265605426,6.93,243.53,243.43,7.11]
[1758265606828,6.93,243.53,243.43,10.8052]
[1758265607724,6.93,243.53,243.43,7.11]
[1758265608527,6.93,243.53,243.44,3.55125438]
[1758265608727,6.93,243.53,243.45,3.55125438]
[1758265608927,6.93,243.53,243.46,3.55125438]
[1758265609129,6.93,243.53,243.47,3.55125438]
[1758265609329,6.93,243.53,243.48,3.55125438]
[1758265609624,6.93,243.53,243.49,3.55125438]
[1758265609830,6.93,243.53,243.5,3.55125438]
[1758265610026,0.02618579,243.54,243.51,3.55125438]
[1758265610233,6.93,243.53,243.52,3.55125438]
[1758265614537,0.02618579,243.54,243.52,3.55125438]
[1758265614733,6.95618579,243.54,243.53,3.55125438]
[1758265615535,0.02618579,243.54,243.53,3.55125438]
[1758265615839,7.16618579,243.54,243.53,3.55125438]
[1758265618442,0.02618579,243.54,243.53,3.55125438]
[1758265619832,6.75618579,243.54,243.53,3.55125438]
[1758265620048,8.129677,243.54,243.53,3.55125438]
[1758265620240,8.549677,243.54,243.53,3.55125438]
[1758265620538,7.17618579,243.54,243.53,3.55125438]
[1758265620744,8.129677,243.54,243.53,3.55125438]
[1758265622846,6.75618579,243.54,243.53,3.55125438]
[1758265623150,8.129677,243.54,243.53,3.55125438]
[1758265623648,8.549677,243.54,243.53,3.55125438]
[1758265624242,8.449677,243.54,243.53,3.55125438]
[1758265625447,8.449677,243.54,243.53,0.00125438]
[1758265626044,8.449677,243.54,243.4,8.01349121]
[1758265626239,6.73,243.5,243.4,8.01349121]
[1758265626445,8.10349121,243.5,243.43,6.64]
[1758265626644,1.37349121,243.51,243.44,1.37349121]